Cogmind - Beta 12 @@@ ROGUE MODE // 2024.01.12 @ 10:14:35 Player: Darcyisverycute Result: Destroyed by G-47 Trooper with Particle Gun Performance ------------- Evolutions (3) 1500 Regions Visited (4) 800 Robots Destroyed (53) 265 Value Destroyed (1356) 1356 Prototype IDs (3) 60 Alien Tech Used (0) 0 Bonus (61) 61 TOTAL SCORE: 4042 Bonus ------- High Alert Combat Kills 61 Cogmind --------- Core Integrity 0/700 Matter 235/300 Energy 99/100 System Corruption 0% Temperature Cool (9) Movement Core (50) Location -7/Factory Parts ------- > --- POWER (1) -------- (None) > --- PROPULSION (3) --- (None) > --- UTILITY (7) ------ Propulsion Shielding > --- WEAPON (2) ------- (None) > --- INVENTORY (5) ---- VTOL Module VTOL Module Improved Terrain Scanner System Shield Precision Grenade Launcher Peak State ------------ > --- POWER ------------ Light Deuterium Engine > --- PROPULSION ------- Aluminum Leg Improved Aluminum Leg Titanium Leg > --- UTILITY ---------- Large Storage Unit Advanced Weight Redist. System Advanced Weight Redist. System Advanced Weight Redist. System Propulsion Shielding > --- WEAPON ----------- Flak Cannon Precision Grenade Launcher > --- INVENTORY -------- VTOL Module VTOL Module VTOL Module VTOL Module Small Storage Unit High-capacity Battery High-capacity Matter Pod Signal Interpreter Improved Terrain Scanner Improved Terrain Scan Processor Hacking Suite Precision Grenade Launcher Precision Grenade Launcher Mining Claw [Rating: 31] Favorites ----------- Power Light Ion Engine Engine Light Ion Engine Propulsion Improved Aluminum Leg Leg Improved Aluminum Leg Flight Unit VTOL Module Utility Large Storage Unit Device Advanced Weight Redist. System Storage Large Storage Unit Processor Transport Network Coupler Protection Hardened Light Armor Plating Weapon Assault Rifle Energy Gun Particle Gun Energy Cannon Light EM Pulse Cannon Ballistic Gun Assault Rifle Ballistic Cannon Light Cannon Launcher Precision Grenade Launcher Build | -11 -10 -9 -8 -7 ------- Run | Jun Mat Mat Mat Fac Slots Evolved 6 | . . 2 2 2 Power . | . . . . . Propulsion 1 | . . 1 . . Utility 5 | . . 1 2 2 Weapon . | . . . . . Parts Attached 38 | 8 7 9 13 1 Power 3 | 1 . 1 1 . Engine 3 | 1 . 1 1 . Core . | . . . . . Reactor . | . . . . . Propulsion 10 | 2 3 2 2 1 Treads . | . . . . . Leg 9 | 2 3 2 2 . Wheel . | . . . . . Hover . | . . . . . Flight 1 | . . . . 1 Utility 14 | 2 2 4 6 . Device 9 | 1 . 3 5 . Storage 2 | 1 1 . . . Processor 1 | . 1 . . . Hackware . | . . . . . Protection 2 | . . 1 1 . Artifact . | . . . . . Weapon 11 | 3 2 2 4 . Energy Gun 5 | 2 2 1 . . Energy Cannon 1 | . . . 1 . Ballistic Gun 1 | 1 . . . . Ballistic Cannon 2 | . . 1 1 . Launcher 2 | . . . 2 . Special Weapon . | . . . . . Impact Weapon . | . . . . . Slashing Weapon . | . . . . . Piercing Weapon . | . . . . . Special Melee Weapon . | . . . . . Unidentified Prototypes 1 | . . . 1 . Parts Lost 15 | . . 4 5 6 Power 3 | . . 1 1 1 Propulsion 3 | . . . 2 1 Utility 6 | . . 2 2 2 Weapon 3 | . . 1 . 2 Highest Loss Streak 6 | . . 2 3 6 To Critical Strikes . | . . . . . Average Slot Usage (%) 89 | . 99 96 89 36 Engine 9 | . 14 10 5 3 Leg 26 | . 27 33 25 2 Device 10 | . 4 9 24 8 Storage 10 | . 14 11 9 6 Processor 3 | . 8 3 . . Protection 4 | . . 5 6 7 Energy Gun 7 | . 14 8 1 . Ballistic Gun 6 | . 14 6 . . Ballistic Cannon 4 | . . 7 6 2 Launcher 1 | . . . 7 2 Naked Turns . | . . . . . Heaviest Build 39 | 13 28 34 39 38 Greatest Support 49 | 20 26 39 40 49 Greatest Overweight (x) 9 | 1 9 . 2 2 Average Overweight (x) . | . . . . . Largest Inventory Capacity 15 | 8 15 15 15 15 Average Capacity 13 | 7 12 15 15 13 Most Carried 15 | 3 15 15 15 15 Average Carried 12 | 1 9 14 14 13 Final Capacity 15 | 8 15 15 15 5 Final Carried 15 | 3 15 15 15 5 Class Distribution -------------------- 100% | Mutant Dominant Class ---------------- Mutant | -10/Materials Mutant | -9/Materials Mutant | -8/Materials Mutant | -7/Factory Resources | -11 -10 -9 -8 -7 ----------- Run | Jun Mat Mat Mat Fac Matter Collected 1186 | 385 185 411 205 . Remotely . | . . . . . Salvage Created 1300 | 147 402 429 322 . Parts 103 | 7 31 32 33 . Haulers Intercepted 4 | . 2 2 . . Recyclers Shooed 2 | . . . 2 . Parts Field Recycled . | . . . . . Retrieved Matter . | . . . . . Parts Self-Destructed . | . . . . . Prevented . | . . . . . Kills | -11 -10 -9 -8 -7 ------- Run | Jun Mat Mat Mat Fac Combat Hostiles Destroyed 30 | . 6 8 16 . Guns 9 | . 6 3 . . Cannons 8 | . . 5 3 . AOE 13 | . . . 13 . Classes Destroyed 11 | 3 4 2 2 . Worker 3 | 1 . 1 1 . Builder 2 | . . . 2 . Tunneler 1 | 1 . . . . Hauler 4 | . 2 2 . . Recycler 1 | 1 . . . . Operator 2 | . 1 . 1 . Watcher 10 | . 3 4 3 . Swarmer 6 | . . . 6 . Grunt 21 | . 6 6 9 . Brawler 1 | . . 1 . . Sentry 2 | . . 1 1 . Best Kill Streak 10 | 2 3 3 10 . Combat Bots Only 7 | . 3 3 7 . Max Kills in Single Turn 4 | 1 1 1 4 . Gunslinging . | . . . . . Exploded 3 | . . . 3 . Melee . | . . . . . Uniques/NPCs Destroyed . | . . . . . Combat | -11 -10 -9 -8 -7 -------- Run | Jun Mat Mat Mat Fac Damage Taken 2761 | . 237 555 774 1195 Core 912 | . 63 63 76 710 Absorbed by Shields . | . . . . . Redirected to Shielding 20 | . . . 10 10 Core Remaining (%) 86 | 100 74 84 86 . Volleys Fired 114 | 6 34 46 28 . Largest 2 | 2 2 2 2 . Hottest 85 | 70 85 85 80 . Shots Fired 213 | 12 68 88 45 . Gun 135 | 12 68 55 . . Cannon 61 | . . 33 28 . Launcher 17 | . . . 17 . Special . | . . . . . Kinetic 136 | 6 34 68 28 . Thermal 60 | 6 34 20 . . Explosive 17 | . . . 17 . Electromagnetic . | . . . . . Robot Hit Streak 12 | 11 12 10 7 . Robot Miss Streak 8 | . 6 3 8 . Penetration Max . | . . . . . Secondary Targets . | . . . . . Shots Hit Robots 132 | 11 39 45 37 . Core Hits 109 | 4 17 21 62 5 Critical Kills 1 | . . 1 . . Critical Parts Destroyed 1 | . 1 . . . Critical Strikes 3 | 1 1 1 . . Burn 1 | 1 . . . . Destroy 2 | . 1 1 . . Melee Attacks . | . . . . . Impact . | . . . . . Slashing . | . . . . . Piercing . | . . . . . Sneak Attacks . | . . . . . Combat Hostiles . | . . . . . Follow-up Attacks . | . . . . . Damage Inflicted 3989 | 139 565 897 2288 100 Guns 1154 | 139 557 458 . . Cannons 987 | . . 439 548 . Explosions 1740 | . . . 1740 . Melee . | . . . . . Ramming 108 | . 8 . . 100 Kinetic 1516 | 65 190 713 548 . Thermal 906 | 74 367 184 281 . Explosive 1459 | . . . 1459 . Electromagnetic . | . . . . . Impact . | . . . . . Slashing . | . . . . . Piercing . | . . . . . Highest Corruption 4 | . 2 1 4 . Average Corruption 1 | . 1 1 4 . Corruption Purged . | . . . . . Corruption Blocked . | . . . . . Effects 17 | . 6 8 3 . Message Errors 4 | . . 3 1 . Matter Fused 1 | . . 1 . . Energy Discharges 3 | . 1 2 . . Parts Fused 1 | . . . 1 . Data Loss (minor) 5 | . 3 1 1 . Misfires 1 | . 1 . . . Alerts 1 | . 1 . . . Weapon Failures 1 | . . 1 . . Overload Shots . | . . . . . Overflow Damage 272 | . . . 272 . Projectiles . | . . . . . Explosions 272 | . . . 272 . Melee . | . . . . . Knockbacks 22 | . . 4 18 . Impact . | . . . . . Kinetic 19 | . . 3 16 . Secondary 3 | . . 1 2 . Self-Inflicted Damage 225 | . 8 . 181 36 Shots 5 | . . . 5 . Rammed 60 | . . . . 60 Targets Rammed 60 | . . . . 60 Kicked . | . . . . . Crushed . | . . . . . Highest Temperature 214 | 36 214 135 63 . Average Temperature 43 | 15 56 42 22 . Received Heat Transfer 1227 | . 126 237 171 693 Siege Activations . | . . . . . Robots Corrupted . | . . . . . Combat Hostiles . | . . . . . Parts Fried . | . . . . . Impact Corruptions . | . . . . . Robots Melted . | . . . . . Combat Hostiles . | . . . . . Parts Melted 2 | 1 . 1 . . Heat Transferred 1817 | 296 888 433 200 . Parts Sabotaged . | . . . . . Parts Stolen . | . . . . . Parts Stripped . | . . . . . Power Chain Reactions . | . . . . . Missiles Intercepted . | . . . . . Alert | -11 -10 -9 -8 -7 ------- Run | Jun Mat Mat Mat Fac Peak Influence 579 | 15 241 204 579 215 Initial 215 | . 9 60 35 215 Average 142 | 5 126 88 307 182 Maximum Alert Level 2 | . 1 1 2 1 Low Security (%) 77 | 100 79 96 32 60 Level 1 14 | . 20 3 22 39 Level 2 7 | . . . 45 . Level 3 . | . . . . . Level 4 . | . . . . . Level 5 . | . . . . . High Security . | . . . . . Max Security . | . . . . . Squads Dispatched 7 | . 3 . 3 1 Investigation 4 | . 2 . 1 1 Extermination . | . . . . . Reinforcement 3 | . 1 . 2 . Assault . | . . . . . Garrison . | . . . . . Intercept . | . . . . . Searches Triggered . | . . . . . Construction Impeded . | . . . . . Haulers Reinforced . | . . . . . Active Scanning Responses . | . . . . . Cargo Convoy Interrupts . | . . . . . Stealth | -11 -10 -9 -8 -7 --------- Run | Jun Mat Mat Mat Fac Distress Signals 3 | . 1 2 . . Communications Jammed . | . . . . . Distress Signals . | . . . . . Times Spotted 60 | . 14 14 24 8 Peak Tracking Total 5 | . 4 4 5 5 Tactical Retreats 3 | . 2 . . 1 Traps | -11 -10 -9 -8 -7 ------- Run | Jun Mat Mat Mat Fac Traps Triggered 1 | . . . 1 . Indirectly . | . . . . . Trap Hack Attempts . | . . . . . Triggered . | . . . . . Disarmed . | . . . . . Reprogrammed . | . . . . . Reused . | . . . . . Traps Extracted . | . . . . . Installed . | . . . . . Triggered . | . . . . . Machines | -11 -10 -9 -8 -7 ---------- Run | Jun Mat Mat Mat Fac Machines Disabled 6 | . . . 6 . Max in Single Turn 4 | . . . 4 . Machines Repaired . | . . . . . Machines Sabotaged . | . . . . . Overloaded Fab Kills . | . . . . . Hacking | -11 -10 -9 -8 -7 --------- Run | Jun Mat Mat Mat Fac Machines Accessed 15 | . 4 8 2 1 Terminals 12 | . 3 6 2 1 Fabricators . | . . . . . Repair Stations . | . . . . . Recycling Units 1 | . 1 . . . Scanalyzers 2 | . . 2 . . Garrison Access . | . . . . . Total Hacks 48 | . 11 29 6 2 Successful 24 | . 4 15 4 1 Failed 24 | . 7 14 2 1 Catastrophic 6 | . . 4 1 1 Database Lockouts . | . . . . . Manual 18 | . 2 12 3 1 Terminals 31 | . 8 15 6 2 Fabricators . | . . . . . Repair Stations . | . . . . . Recycling Units 3 | . 3 . . . Scanalyzers 14 | . . 14 . . Garrison Access . | . . . . . Terminal Hacks 12 | . 2 5 4 1 Prototype ID Bank 1 | . . 1 . . Branch Access Points 1 | . . . 1 . Scanalyzer Index 1 | . . 1 . . Locate Traps 2 | . 1 . 1 . Dispatch Records 1 | . 1 . . . Zone Layout 6 | . . 3 2 1 Fabricator Hacks . | . . . . . Repair Station Hacks . | . . . . . Recycling Unit Hacks . | . . . . . Scanalyzer 10 | . . 10 . . Insert Component 5 | . . 5 . . Analyze 5 | . . 5 . . Garrison Access Hacks . | . . . . . Unauthorized Hacks 2 | . 2 . . . Terminals . | . . . . . Fabricators . | . . . . . Repair Stations . | . . . . . Recycling Units 2 | . 2 . . . Reject 1 | . 1 . . . Mask 1 | . 1 . . . Scanalyzers . | . . . . . Garrison Access . | . . . . . Data Cores Recovered . | . . . . . Used . | . . . . . Hacking Detections 14 | . 4 7 2 1 Full Trace Events 4 | . 2 1 . 1 Feedback Events 1 | . 1 . . . Corruption 1 | . 1 . . . Feedback Blocked . | . . . . . Robot Schematics Acquired . | . . . . . Robots Built . | . . . . . Authchips . | . . . . . Time . | . . . . . Total Robot Build Rating . | . . . . . Part Schematics Acquired 3 | . . 3 . . Parts Built . | . . . . . Authchips . | . . . . . Time . | . . . . . Total Part Build Rating . | . . . . . Parts Repaired . | . . . . . Time . | . . . . . Parts Recycled . | . . . . . Recycled Matter . | . . . . . Retrieved Matter . | . . . . . Retrieved Components . | . . . . . Parts Scanalyzed 4 | . . 4 . . Part Schematics Acquired 3 | . . 3 . . Parts Damaged . | . . . . . Bothacking | -11 -10 -9 -8 -7 ------------ Run | Jun Mat Mat Mat Fac Used RIF Installer . | . . . . . Robots Hacked . | . . . . . Non-combat . | . . . . . Combat . | . . . . . Robot Hacks Applied . | . . . . . Relay Couplers Released . | . . . . . Fabnet Peak Effective % . | . . . . . Robots Rewired . | . . . . . Allies Hacked . | . . . . . Hacks Repelled . | . . . . . Allies | -11 -10 -9 -8 -7 -------- Run | Jun Mat Mat Mat Fac Total Allies . | . . . . . Largest Group . | . . . . . Highest-Rated Group . | . . . . . Highest-Rated Ally . | . . . . . Total Orders . | . . . . . Ally Attacks . | . . . . . Total Damage . | . . . . . Kills . | . . . . . Allies Corrupted . | . . . . . Allies Melted . | . . . . . Intel | -11 -10 -9 -8 -7 ------- Run | Jun Mat Mat Mat Fac Robot Analysis Total . | . . . . . Derelict Logs Recovered . | . . . . . Drone Launches . | . . . . . Drone Recoveries . | . . . . . Exploration | -11 -10 -9 -8 -7 ------------- Run | Jun Mat Mat Mat Fac Turns Passed 2840 | 122 752 1193 491 282 Spaces Moved 1461 | 72 349 668 265 107 Core 68 | 4 2 . . 62 Treads . | . . . . . Legs 1368 | 68 347 668 265 20 Wheels . | . . . . . Hover . | . . . . . Flight 25 | . . . . 25 Fastest Speed 50 | 50 120 120 120 50 Average Speed 130 | 116 166 120 124 98 Slowest Speed 500 | 120 500 120 260 195 Overloaded Moves . | . . . . . Propulsion Burnouts . | . . . . . Robots Hopped . | . . . . . Cave-ins Triggered 1 | . . . 1 . Exploration Rate (%) 30 | 4 47 53 45 4 Regions Visited 4 Branch Regions . Pre-discovered Areas . | . . . . . Known Exits Taken . | . . . . . Unknown Exits Taken 4 | 1 1 1 1 . Scrap Searched . | . . . . . Spaces Dug . | . . . . . Terrain Destroyed 171 | . . . 171 . Melee . | . . . . . Projectile . | . . . . . AOE 171 | . . . 171 . Terrain Rammed 1 | . 1 . . . Walls Destroyed . | . . . . . Machines Disabled . | . . . . . Actions | -11 -10 -9 -8 -7 --------- Run | Jun Mat Mat Mat Fac Total 2082 | 94 455 976 381 176 Wait 334 | 6 43 224 61 . Move 1457 | 71 348 667 264 107 Hop . | . . . . . Pick Up 40 | 3 13 15 7 2 Fast Attach 23 | 7 3 5 8 . Attach 10 | . 2 3 4 1 Detach 5 | . 5 . . . Swap 5 | 1 2 1 1 . Drop 33 | . 4 15 8 6 Fire 114 | 6 34 46 28 . Melee . | . . . . . Ram 61 | . 1 . . 60 Kick . | . . . . . Crush . | . . . . . Escape Stasis . | . . . . . Rewire . | . . . . . Trap . | . . . . . Miscellaneous . | . . . . . Route ------- -11/Junkyard -10/Materials (discovered 2 exits: *Mat / [*Min]) -9/Materials (discovered 2 exits: *Mat x2) -8/Materials -7/Factory History --------- Turn | Location | Event 10 | -11/Junkyard | Discovered new exit (range 15) 123 | -11/Junkyard | Entered Materials 305 | -10/Materials | Build established: Mutant 309 | -10/Materials | Discovered new exit (range 12) 473 | -10/Materials | Discovered new exit (range 15) 875 | -10/Materials | Entered another Materials area 875 | -9/Materials | Evolved 2 slots: Propulsion x1, Utility x1 1588 | -9/Materials | Discovered new exit (range 13) 2045 | -9/Materials | Discovered new exit (range 5) 2068 | -9/Materials | Entered another Materials area 2068 | -8/Materials | Evolved 2 slots: Utility x2 2262 | -8/Materials | Destroyed 7 combat bots 2350 | -8/Materials | Crushed by falling debris 2381 | -8/Materials | Lost 3 parts (1n2u) 2502 | -8/Materials | Discovered new exit (range 16) 2559 | -8/Materials | Entered Factory 2559 | -7/Factory | Evolved 2 slots: Utility x2 2728 | -7/Factory | Core integrity fell below 50% 2746 | -7/Factory | Lost 6 parts (1p1n2u2w) 2784 | -7/Factory | Core integrity fell below 20% 2841 | -7/Factory | Destroyed by G-47 Trooper with Particle Gun Last Messages --------------- 02805_ K-01 Serf cleans the Power Conduit. 02807_ Slammed into G-47 Trooper. 02809_ U-05 Engineer builds a Wall. 02809_ K-01 Serf collects debris. 02810_ Dropped Lrg. Storage Unit. 02812_ M-28 Smith repairs G-47 Trooper. 02812_ K-01 Serf collects debris. 02812_ U-05 Engineer lays Concrete. 02813_ K-01 Serf cleans the Power Conduit. 02813_ U-05 Engineer lays Concrete. 02817_ K-01 Serf collects debris. 02819_ U-05 Engineer builds a Wall. 02820_ U-05 Engineer builds a Door. 02827_ Connecting with Terminal... 02827_ Current location identified: Factory >>Layout(Zone) Retrieving Zone 8O layout... Downloaded map data. 02827_ ALERT: Suspicious activity at Terminal F005. Dispatching Investigation squad. Map ----- +----------------------------------------------------+ | ??????????????# """ """ # """"" """"" ## #? | | ??????????????# """ """ + """ """ ## #? | | ??????????????# # ! ## #? | | ??????????????# """!""" # = ## #? | | ??????????????# """ """ # ! = ## #? | | ??????????????# """ """ ##########+#### #? | | ??????????????# # ### #### ## | | ??????????????# # """" # | | ??????????????# """" # | | ??????????????# # """" # | | ??????????????# u # """" # | | ??????????????# *! """" + | | ??????????????##=!#### """" # ######### | | ???????????######// # """" # #???????? | | ????????# !!!!=! # # # #???????? | | ????????# """"""""" # # # ??????? | | ????????# # ; # ????? | | ???###### """"""""" # # "" # ??? | | ????????# #g #""" # ##+####?? | | ????????# """"""""" # #"R # #???????? | | ????????# # #""" # #???????? | | ????????# # #""" # #???????? | | ????????# [= + # # #???????? | | ????????# = # g ######### #???????? | | ????????# ]#gl #######?? ????????? | | ????????# # g @ ????????? | | ????????##############+#+##########??????????????? | | ???####?????????# #???????????????? | | ??? #?????????# """"""" #???????????????? | | ??? #?????????# """"""" #???????????????? | | ???"" #?????????#"" """"""" #???????????????? | | ??? #?????????#"" """"""" #???????????????? | | ???"" #?????????#"T #???????????????? | | ??? #?????????#"" |** #???????????????? | | ???"" #?????????#"" |*[ #???????????????? | | ??? #?????????# ** #???????????????? | | ???###############################???????????????? | | ???# #??????????????????????????? | | ???# #??????????????????????????? | | ???# #??????????????????????????? | | ???# #??????????????????????????? | | ???# #??????????????????????????? | | ???# #??????????????????????????? | | ???# #??????????????????????????? | | ???# #???########???????????????? | | ???##########+#+#######???# ???????????????? | | ??? + #?????????# ???????????????? | | ??? # ########### ???????????????? | | ?????????????????????????????????????????????????? | | ?????????????????????????????????????????????????? | +----------------------------------------------------+ Best States ------------- Heat Dissipation 34 Energy Generation 14 Energy Capacity 140 Matter Stores 300 Matter Capacity 300 Sight Range 16 Robot Scan Range 14 Terrain Scan Range 16 Terrain Scan Density 10 Additional Mass Support 9 Armor Coverage 150 Propulsion Shielding 33 Evasion (%) 55 Item Schematics ----------------- Hacking Suite | -9/Materials | Scanalyzed Weight Redist. System | -9/Materials | Scanalyzed VTOL Module | -9/Materials | Scanalyzed Robot Schematics ------------------ None Fabricated ------------ Nothing Alien Tech Used ----------------- None Achievements -------------- None Challenges ------------ None Game ------ Seed NodeMyomerBooster Manual? 0 Play Time 00:40:49 Cumulative 56.8 hours Start 2024.01.12 @ 09:36:16 End 2024.01.12 @ 10:14:35 Sessions 1 Manual Loads 0 Difficulty Rogue Special Mode None Game No. 24 Rogue 16 Adventurer 8 Explorer 0 Win Type - Total 1 Types 1/0/0/0/0/0/0/0/0 Lore% 38 Gallery% 46 Achievement% 40 Wizard Run 0 Options --------- ASCII 0 Keyboard 1 Movement Numpad Keybinds 1 Fullscreen 2 Font 18/TerminusBold Map View 76x50 Tactical HUD 1 Map Filters NONE Filters NONE Steam 0 RUN: 1a7197fa-4d7a-4a7e-89c4-afa911071132